[Event "2nd Sharjah Masters 2018"]
[Site "Sharjah"]
[Date "2018.04.14"]
[Round "4"]
[White "Arjun Kalyan"]
[Black "Mullick, Raahil"]
[Result "1-0"]
[ECO "C65"]
[WhiteElo "2397"]
[BlackElo "2053"]
[Annotator "NA"]
[PlyCount "109"]
[EventDate "2018.??.??"]
[EventType "swiss"]
[EventCountry "UAE"]
[SourceTitle "playchess.com"]
[Source "ChessBase"]
[SourceQuality "1"]
[TimeControl "5400+30"]

1. e4 {[%emt 0:00:00]} e5 {[%emt 0:00:08]} 2. Nf3 {[%emt 0:00:00]} Nc6 {[%emt 0:00:06]} 3. Bb5 {[%emt 0:00:05]} Nf6 {[%emt 0:00:12]} 4. d3 {[%emt 0:00:37]} Bc5 {[%emt 0:00:17]} 5. O-O {[%emt 0:00:46]} d6 {[%emt 0:01:30]} 6. c3 {[%emt 0:01:14]} O-O {[%emt 0:00:21]} 7. h3 {[%emt 0:00:16]} Ne7 {[%emt 0:03:04] C65: Ruy Lopez: Berlin Defence (3...Nf6), unusual lines and 4 0-0 Bc5} 8. Re1 {[%emt 0:00:41]} Ng6 {[%emt 0:00:16]} 9. Nbd2 {[%emt 0:01:36]} c6 {[%emt 0:06:29]} 10. Ba4 {[%emt 0:01:45]} Bb6 {[%emt 0:00:41]} 11. d4 {[%emt 0:00:26]} Re8 {[%emt 0:06:29]} 12. Bc2 {[%emt 0:00:44]} Bc7 {[%emt 0:01:56]} 13. a4 {[%emt 0:01:48]} a5 {[%emt 0:10:37]} 14. Nf1 {[%emt 0:04:34]} d5 {[%emt 0:05:36]} 15. exd5 {[%emt 0:05:46] [#]} e4 $146 {[%emt 0:00:59]} 16. d6 {[%emt 0:02:15]} Qxd6 {[%emt 0:03:01]} 17. N3d2 {[%emt 0:01:32]} Bf5 {[%emt 0:07:22]} 18. Nc4 {[%emt 0:08:53]} Qe6 {[%emt 0:05:39]} 19. Bb3 {[%emt 0:05:11]} Qd7 {[%emt 0:00:50]} 20. Ng3 {[%emt 0:05:20] [#]} Bxh3 $1 {[%emt 0:05:16]} 21. Ne5 $17 {[%emt 0:18:39]} ({Wrong is} 21. gxh3 $2 Qxh3 22. Bg5 Bxg3 $19) 21... Nxe5 {[%emt 0:05:52]} 22. dxe5 {[%emt 0:01:07]} Bxe5 {[%emt 0:00:12]} 23. Nxe4 {[%emt 0:09:30]} Nxe4 {[%emt 0:12:27]} 24. Rxe4 {[%emt 0:00:14]} Qxd1+ {[%emt 0:03:01]} 25. Bxd1 {[%emt 0:00:03]} Bf5 {[%emt 0:01:13]} 26. Re3 {[%emt 0:00:21]} Rad8 {[%emt 0:02:51]} 27. Bf3 {[%emt 0:00:17]} f6 {[%emt 0:04:02]} 28. g3 {[%emt 0:00:32]} Kf7 {[%emt 0:01:57]} 29. Re1 {[%emt 0:00:21]} Rd3 {[%emt 0:04:43]} 30. Be2 {[%emt 0:01:33]} Rd6 {[%emt 0:00:56]} 31. f4 {[%emt 0:03:06]} Bd4+ {[%emt 0:06:12]} 32. cxd4 {[%emt 0:00:28]} Rxd4 {[%emt 0:00:09]} 33. Kf2 {[%emt 0:00:46]} Bc2 {[%emt 0:01:05]} 34. Be3 {[%emt 0:01:42]} Rxa4 {[%emt 0:00:29]} 35. Rxa4 {[%emt 0:00:04]} Bxa4 {[%emt 0:00:06]} 36. Bb6 {[%emt 0:01:15]} Bb3 {[%emt 0:01:19]} 37. Bxa5 {[%emt 0:00:18]} b5 {[%emt 0:01:05]} 38. Bb4 {[%emt 0:00:51]} Bd5 {[%emt 0:00:27]} 39. Bh5+ {[%emt 0:01:00]} g6 {[%emt 0:00:15]} 40. Rxe8 {[%emt 0:00:02]} Kxe8 {[%emt 0:00:07]} 41. Bf3 {[%emt 0:00:02]} Bxf3 {[%emt 0:01:08]} 42. Kxf3 {[%emt 0:00:04]} Kd7 {[%emt 0:00:24]} 43. f5 {[%emt 0:00:06]} gxf5 {[%emt 0:00:33]} 44. Kf4 {[%emt 0:00:01]} Ke6 {[%emt 0:00:01]} 45. Bc5 {[%emt 0:00:01]} Kd5 {[%emt 0:00:30]} 46. b4 {[%emt 0:00:06]} Ke6 {[%emt 0:00:09]} 47. Bb6 {[%emt 0:00:03]} h6 {[%emt 0:00:41]} 48. Ba7 {[%emt 0:00:03]} h5 {[%emt 0:00:10]} 49. Bc5 {[%emt 0:00:02]} Kf7 {[%emt 0:00:23]} 50. Kxf5 {[%emt 0:00:03]} Kg7 {[%emt 0:00:12]} 51. Be7 {[%emt 0:00:06]} Kh6 {[%emt 0:00:11]} 52. Bxf6 {[%emt 0:00:05]} h4 {[%emt 0:00:08]} 53. Bxh4 {[%emt 0:00:07]} Kh5 {[%emt 0:00:11]} 54. Bf6 {[%emt 0:00:05]} Kh6 {[%emt 0:00:11]} 55. g4 {[%emt 0:00:04]} 1-0

[Event "2nd Sharjah Masters 2018"]
[Site "Sharjah"]
[Date "2018.04.14"]
[Round "4"]
[White "Rajdeep Sarkar"]
[Black "Reyes, Danilo G"]
[Result "1-0"]
[ECO "E09"]
[WhiteElo "2393"]
[BlackElo "1640"]
[Annotator "NA"]
[PlyCount "61"]
[EventDate "2018.??.??"]
[EventType "swiss"]
[EventCountry "UAE"]
[SourceTitle "playchess.com"]
[Source "ChessBase"]
[SourceQuality "1"]
[TimeControl "5400+30"]

1. d4 {[%emt 0:00:00]} Nf6 {[%emt 0:00:15]} 2. Nf3 {[%emt 0:00:00]} e6 {[%emt 0:00:25]} 3. c4 {[%emt 0:00:00]} d5 {[%emt 0:00:11]} 4. Qc2 {[%emt 0:00:00]} c6 {[%emt 0:02:18]} 5. g3 {[%emt 0:00:31]} Be7 {[%emt 0:00:32]} 6. Bg2 {[%emt 0:00:06]} O-O {[%emt 0:00:41]} 7. O-O {[%emt 0:00:06]} Nbd7 {[%emt 0:02:54]} 8. Nbd2 {[%emt 0:00:07]} a6 {[%emt 0:01:43] E09: Closed Catalan: Main Line: 7 Qc2 c6 8 Nbd2} (8... b6 9. e4 Ba6 10. e5 Ne8 11. Re1 Rc8 12. cxd5 cxd5 13. Qd1 Qc7 14. Nb1 Qc2 15. Nc3 Qxd1 16. Rxd1 Nc7 17. h4 Nb5 {½-½ (69) Yu,Y (2751)-Le,Q (2737) Huaian 2017}) 9. e4 {[%emt 0:00:24]} dxc4 {[%emt 0:12:08]} 10. Nxc4 {[%emt 0:02:03]} h6 $146 {[%emt 0:02:23]} ({Predecessor:} 10... b5 11. Nce5 c5 12. Nc6 Qe8 13. e5 Nd5 14. Nxe7+ Qxe7 15. Ng5 g6 16. Bxd5 exd5 17. Re1 f6 18. Nf3 cxd4 19. Bh6 Rf7 20. e6 {1-0 (20) Jedlicka,A (2222)-Socha,J (1951) Tatranska Lomnica 2017}) 11. Rd1 {[%emt 0:01:50]} Nb6 {[%emt 0:08:31]} 12. Ne3 {[%emt 0:02:45]} Bd7 {[%emt 0:05:58]} 13. Bd2 {[%emt 0:01:57]} a5 {[%emt 0:01:24]} 14. Rac1 {[%emt 0:01:52]} Bb4 {[%emt 0:04:46]} 15. Ne5 {[%emt 0:05:01]} Qe7 {[%emt 0:05:13]} 16. Bxb4 {[%emt 0:07:31]} axb4 {[%emt 0:01:52]} 17. Qc5 {[%emt 0:00:07]} Qd8 {[%emt 0:03:23]} 18. Ra1 {[%emt 0:00:41]} Bc8 {[%emt 0:06:23]} 19. Qxb4 {[%emt 0:00:38]} Qc7 {[%emt 0:02:16]} 20. a4 {[%emt 0:07:19]} Rd8 {[%emt 0:02:28]} 21. a5 {[%emt 0:01:22]} Nbd7 {[%emt 0:00:49]} 22. Qe7 {[%emt 0:02:26]} Rf8 $18 {[%emt 0:02:56]} 23. N3c4 {[%emt 0:02:58]} Qd8 {[%emt 0:04:55]} 24. Qd6 {[%emt 0:05:14]} Ne8 {[%emt 0:07:12]} 25. Qb4 {[%emt 0:01:07]} Qc7 {[%emt 0:06:28]} 26. f4 {[%emt 0:02:34]} f6 {[%emt 0:04:07]} 27. Ng6 {[%emt 0:01:41]} Rf7 {[%emt 0:00:19]} 28. Bh3 {[%emt 0:02:02]} c5 {[%emt 0:04:35]} 29. dxc5 {[%emt 0:00:13]} Nxc5 {[%emt 0:00:59]} 30. Nb6 {[%emt 0:00:24]} Rb8 {[%emt 0:01:32]} 31. Rac1 {[%emt 0:00:12]} 1-0

[Event "2nd Sharjah Masters 2018"]
[Site "Sharjah"]
[Date "2018.04.14"]
[Round "4"]
[White "Sidhant, Mohapatra"]
[Black "Priyanka Nutakki"]
[Result "1/2-1/2"]
[ECO "A20"]
[WhiteElo "2382"]
[BlackElo "1957"]
[Annotator "NA"]
[PlyCount "169"]
[EventDate "2018.??.??"]
[EventType "swiss"]
[EventCountry "UAE"]
[SourceTitle "playchess.com"]
[Source "ChessBase"]
[SourceQuality "1"]
[TimeControl "5400+30"]

1. c4 {[%emt 0:00:05]} e5 {[%emt 0:00:17]} 2. g3 {[%emt 0:00:19]} Nf6 {[%emt 0:00:14]} 3. Bg2 {[%emt 0:01:03]} Nc6 {[%emt 0:00:11]} 4. Nc3 {[%emt 0:00:07]} Bb4 {[%emt 0:00:14]} 5. Nd5 {[%emt 0:00:30]} Bc5 {[%emt 0:00:18]} 6. e3 {[%emt 0:00:07]} O-O {[%emt 0:00:21]} 7. Ne2 {[%emt 0:00:10]} d6 {[%emt 0:00:18]} 8. O-O {[%emt 0:01:40]} Nxd5 {[%emt 0:00:30]} 9. cxd5 {[%emt 0:00:05]} Ne7 {[%emt 0:00:04]} 10. d4 {[%emt 0:01:07]} exd4 {[%emt 0:00:08]} 11. Nxd4 {[%emt 0:00:03]} Ng6 {[%emt 0:03:27] A29: English Opening: Four Knights Variation with 4 g3} (11... Nf5 12. Ne2 Qf6 13. Rb1 a5 14. b3 Bd7 15. Bb2 Qh6 16. e4 Ne7 17. Bd4 b6 18. Qc1 Qh5 19. Nf4 {0-1 (39) Ivanchuk,V (2738)-Nepomniachtchi,I (2732) Leuven 2017}) 12. b3 {[%emt 0:04:09]} a5 {[%emt 0:02:00]} 13. a3 {[%emt 0:00:47]} Ne5 {[%emt 0:09:34]} 14. Bb2 {[%emt 0:06:14]} Bg4 {[%emt 0:03:52]} 15. f3 {[%emt 0:00:57]} Bd7 {[%emt 0:00:06]} 16. f4 $146 {[%emt 0:05:34]} ({Find the theoretical novelty and annotate with similar games:} 16. h3 Qe8 17. f4 Ng6 18. Kh2 c6 19. Qd2 Ne7 20. dxc6 {½-½ (20) Dowden,R (2123)-Milligan,H (2015) Auckland 2010}) 16... Ng4 {[%emt 0:02:58]} 17. Qd3 {[%emt 0:00:07]} Re8 {[%emt 0:11:13]} 18. Rae1 {[%emt 0:01:49]} Nf6 {[%emt 0:18:36]} (18... c6 $5) 19. h3 {[%emt 0:03:25]} Rc8 {[%emt 0:13:50]} 20. Kh2 {[%emt 0:02:03]} c6 {[%emt 0:01:04]} 21. dxc6 {[%emt 0:00:48]} Bxc6 $14 {[%emt 0:05:30]} 22. e4 {[%emt 0:07:04]} Bxd4 {[%emt 0:20:28]} 23. Bxd4 {[%emt 0:05:16]} Nd7 {[%emt 0:01:50]} 24. b4 {[%emt 0:04:14]} axb4 {[%emt 0:00:04]} 25. axb4 {[%emt 0:00:02]} Nc5 {[%emt 0:01:09]} 26. Qb1 {[%emt 0:01:32]} Ne6 {[%emt 0:00:18]} 27. Ba1 {[%emt 0:00:25]} Bb5 {[%emt 0:01:01]} 28. Rf2 {[%emt 0:00:08]} Qb6 {[%emt 0:00:18]} 29. Rd2 {[%emt 0:01:06]} Rc4 {[%emt 0:02:44]} 30. f5 {[%emt 0:00:51]} Nf8 {[%emt 0:00:59]} 31. Qd1 {[%emt 0:01:33]} d5 {[%emt 0:01:31]} 32. Rxd5 {[%emt 0:01:17]} Rxb4 33. Rd6 {[%emt 0:01:20]} Qc7 {[%emt 0:01:16]} 34. Qd2 {[%emt 0:03:57]} Ra4 {[%emt 0:00:30]} 35. Bxg7 {[%emt 0:10:37]} Kxg7 {[%emt 0:00:10]} 36. Qg5+ {[%emt 0:00:02]} Kh8 {[%emt 0:00:43]} 37. f6 {[%emt 0:00:18]} Ne6 {[%emt 0:00:32]} 38. Qxb5 {[%emt 0:00:06]} Rg8 {[%emt 0:00:35]} 39. Rd3 {[%emt 0:01:03]} Ra2 {[%emt 0:00:29]} 40. Qb3 {[%emt 0:02:53]} Rf2 {[%emt 0:00:32]} 41. Qc3 {[%emt 0:01:51]} Qxc3 42. Rxc3 {[%emt 0:00:07]} Nf4 {[%emt 0:00:30]} 43. Rg1 {[%emt 0:00:26]} Nxg2 {[%emt 0:00:46]} 44. Rxg2 {[%emt 0:00:05]} Rxf6 {[%emt 0:00:01]} 45. Rb2 {[%emt 0:00:53]} Re8 {[%emt 0:00:34]} 46. Rc4 {[%emt 0:00:06]} Rfe6 {[%emt 0:01:10]} 47. Rxb7 {[%emt 0:00:18]} Rxe4 {[%emt 0:00:23]} 48. Rxe4 {[%emt 0:00:07]} Rxe4 {[%emt 0:00:01]} 49. Rxf7 {[%emt 0:00:02]} Re2+ {[%emt 0:00:00]} 50. Kg1 {[%emt 0:00:02]} Kg8 {[%emt 0:00:26]} 51. Rf2 {[%emt 0:00:01]} Re3 {[%emt 0:00:12]} 52. Kg2 {[%emt 0:00:01]} Kg7 {[%emt 0:00:05]} 53. Ra2 {[%emt 0:00:09]} Kg6 {[%emt 0:00:22]} 54. Ra6+ {[%emt 0:00:05]} Kg7 {[%emt 0:01:12]} 55. Kf2 {[%emt 0:00:11]} Rb3 {[%emt 0:00:06]} 56. Re6 {[%emt 0:00:06]} Ra3 {[%emt 0:01:44]} 57. Re3 {[%emt 0:00:02]} Ra4 {[%emt 0:00:04]} 58. Kf3 {[%emt 0:00:07]} Kf6 {[%emt 0:00:13]} 59. Re4 {[%emt 0:00:05]} Ra5 {[%emt 0:01:05]} 60. Kg4 {[%emt 0:00:06]} Rg5+ {[%emt 0:00:37]} 61. Kh4 {[%emt 0:00:10]} Ra5 {[%emt 0:00:23]} 62. Rb4 {[%emt 0:00:10]} Kg6 {[%emt 0:01:05]} 63. Rb6+ {[%emt 0:00:05]} Kg7 {[%emt 0:00:02]} 64. g4 {[%emt 0:00:08]} Rc5 {[%emt 0:00:44]} 65. g5 {[%emt 0:00:07]} Rc7 {[%emt 0:00:27]} 66. Kg4 {[%emt 0:00:11]} Ra7 {[%emt 0:00:38]} 67. h4 {[%emt 0:00:04]} Ra4+ {[%emt 0:00:08]} 68. Kh5 {[%emt 0:00:27]} Ra7 {[%emt 0:00:04]} 69. Rf6 {[%emt 0:00:13]} Ra4 {[%emt 0:00:07]} 70. Re6 {[%emt 0:00:05]} Ra7 {[%emt 0:00:25]} 71. Kg4 {[%emt 0:00:37]} Ra4+ {[%emt 0:00:01]} 72. Kg3 {[%emt 0:00:09]} Ra3+ {[%emt 0:00:52]} 73. Kf4 {[%emt 0:00:01]} Ra4+ {[%emt 0:00:01]} 74. Re4 {[%emt 0:00:08]} Rxe4+ {[%emt 0:00:22]} 75. Kxe4 {[%emt 0:00:04]} h6 {[%emt 0:00:14]} 76. Kf5 {[%emt 0:00:05]} hxg5 {[%emt 0:00:02]} 77. hxg5 {[%emt 0:00:04]} Kf7 {[%emt 0:00:03]} 78. Kf4 {[%emt 0:00:18]} Kg6 {[%emt 0:00:06]} 79. Kg4 {[%emt 0:00:03]} Kg7 {[%emt 0:00:03]} 80. Kh5 {[%emt 0:00:04]} Kh7 {[%emt 0:00:02]} 81. g6+ {[%emt 0:00:04]} Kg7 {[%emt 0:00:01]} 82. Kg5 {[%emt 0:00:01]} Kg8 {[%emt 0:00:00]} 83. Kf6 {[%emt 0:00:10]} Kf8 {[%emt 0:00:02]} 84. g7+ {[%emt 0:00:01]} Kg8 {[%emt 0:00:00]} 85. Kg6 {[%emt 0:00:01]} 1/2-1/2

[Event "2nd Sharjah Masters 2018"]
[Site "Sharjah"]
[Date "2018.04.14"]
[Round "4"]
[White "Sadhwani, Raunak"]
[Black "Salim Mohammed Salim Al Amri"]
[Result "1-0"]
[ECO "C50"]
[WhiteElo "2358"]
[BlackElo "1970"]
[Annotator "NA"]
[PlyCount "77"]
[EventDate "2018.??.??"]
[EventType "swiss"]
[EventCountry "UAE"]
[SourceTitle "playchess.com"]
[Source "ChessBase"]
[SourceQuality "1"]
[TimeControl "5400+30"]

1. e4 {[%emt 0:00:00]} e5 {[%emt 0:00:06]} 2. Nf3 {[%emt 0:00:00]} Nc6 {[%emt 0:00:05]} 3. Bc4 {[%emt 0:00:00]} Nf6 {[%emt 0:00:27]} 4. d3 {[%emt 0:00:00]} Bc5 {[%emt 0:00:09]} 5. O-O {[%emt 0:00:01]} d6 {[%emt 0:00:08]} 6. c3 {[%emt 0:00:22]} a6 {[%emt 0:00:27]} 7. a4 {[%emt 0:00:13]} O-O {[%emt 0:00:29]} 8. Bg5 {[%emt 0:02:39] C54: Giuoco Piano: 4 c3 Nf6, main lines with 5 d4 and 5 d3} (8. h3 h6 9. Re1 Re8 10. Nbd2 Be6 11. Bxe6 Rxe6 12. b4 Ba7 13. Qc2 Qd7 14. Nf1 d5 15. Ng3 Rd8 16. exd5 Qxd5 {½-½ (63) Carlsen,M (2834)-Kramnik,V (2787) Wijk aan Zee 2018}) 8... h6 {[%emt 0:00:35]} 9. Bh4 {[%emt 0:00:04]} g5 {[%emt 0:00:33]} 10. Bg3 {[%emt 0:00:04]} Bg4 {[%emt 0:00:11]} 11. h3 {[%emt 0:02:34]} Bh5 {[%emt 0:00:21]} 12. Nbd2 {[%emt 0:00:06]} g4 $146 {[%emt 0:01:49]} ({Find the theoretical novelty and annotate with similar games:} 12... Ba7 13. Qe1 Bg6 14. Kh1 Nh5 15. Ng1 Kh8 16. Bh2 {0-1 (58) Aabling Thomsen,J (2375)-Hjartarson,J (2583) Reykjavik 2014}) 13. hxg4 {[%emt 0:00:21]} Bxg4 {[%emt 0:00:16]} 14. Bh4 {[%emt 0:01:00]} Kg7 {[%emt 0:00:25]} 15. Qc1 {[%emt 0:01:09]} Ba7 {[%emt 0:00:50]} 16. Nh2 {[%emt 0:00:46]} Be2 {[%emt 0:00:50]} 17. Ndf3 {[%emt 0:02:48]} Bxf1 {[%emt 0:02:32]} 18. Nxf1 {[%emt 0:01:24]} Qd7 {[%emt 0:05:49]} 19. Ng3 {[%emt 0:00:26]} Ng4 {[%emt 0:00:30]} 20. Nf5+ {[%emt 0:00:06]} Kh7 $18 {[%emt 0:18:26]} 21. Nh2 {[%emt 0:00:10]} Ne3 {[%emt 0:00:22]} 22. fxe3 {[%emt 0:00:28]} Rg8 {[%emt 0:00:13]} 23. Qd1 {[%emt 0:00:09]} Rg6 {[%emt 0:00:31]} 24. Ng4 {[%emt 0:00:45]} Rag8 {[%emt 0:00:30]} 25. Nf6+ {[%emt 0:00:07]} Rxf6 {[%emt 0:00:06]} 26. Bxf6 {[%emt 0:00:05]} Rg6 {[%emt 0:00:22]} 27. Bh4 {[%emt 0:00:14]} f6 {[%emt 0:00:41]} 28. Qf3 {[%emt 0:00:43]} Nd8 {[%emt 0:00:12]} 29. Rf1 {[%emt 0:00:52]} c6 {[%emt 0:00:12]} 30. d4 {[%emt 0:00:41]} b5 {[%emt 0:00:07]} 31. axb5 {[%emt 0:00:15]} axb5 {[%emt 0:00:02]} 32. Ba2 {[%emt 0:00:11]} c5 {[%emt 0:00:16]} 33. dxe5 {[%emt 0:00:08]} dxe5 {[%emt 0:00:13]} 34. Rd1 {[%emt 0:00:10]} Qc7 {[%emt 0:00:12]} 35. Bd5 {[%emt 0:00:20]} c4 {[%emt 0:00:09]} 36. Qe2 {[%emt 0:00:21]} Nf7 {[%emt 0:00:37]} 37. Bxf7 {[%emt 0:00:16]} Qxf7 {[%emt 0:00:02]} 38. Rd5 {[%emt 0:00:08]} Qb7 {[%emt 0:00:14]} 39. Qd2 {[%emt 0:00:04]} 1-0

[Event "2nd Sharjah Masters 2018"]
[Site "Sharjah"]
[Date "2018.04.14"]
[Round "4"]
[White "Zhu, Yilun"]
[Black "Soumya, Swaminathan"]
[Result "0-1"]
[ECO "B89"]
[WhiteElo "2195"]
[BlackElo "2354"]
[Annotator "NA"]
[PlyCount "108"]
[EventDate "2018.??.??"]
[EventType "swiss"]
[EventCountry "UAE"]
[SourceTitle "playchess.com"]
[Source "ChessBase"]
[SourceQuality "1"]
[TimeControl "5400+30"]

1. e4 {[%emt 0:00:00]} c5 {[%emt 0:00:04]} 2. Nc3 {[%emt 0:00:00]} Nc6 {[%emt 0:00:10]} 3. Nge2 {[%emt 0:00:00]} d6 {[%emt 0:01:35]} 4. d4 {[%emt 0:00:05]} cxd4 {[%emt 0:00:05]} 5. Nxd4 {[%emt 0:00:02]} Nf6 {[%emt 0:00:06]} 6. Bc4 {[%emt 0:00:18]} e6 {[%emt 0:00:35]} 7. Be3 {[%emt 0:00:10]} a6 {[%emt 0:00:48]} 8. Qe2 {[%emt 0:00:14]} Qc7 {[%emt 0:03:52]} 9. Bb3 {[%emt 0:00:05]} Na5 {[%emt 0:00:14]} 10. g4 {[%emt 0:00:29]} Rb8 {[%emt 0:20:13] B89: Sicilian: Velimirovic Attack} (10... b5 $11 11. g5 Nd7 12. Bxe6 fxe6 13. Nxe6 Qc4 14. Nd5 Qxe2+ 15. Kxe2 Rb8 16. f4 Nc6 17. Rad1 Nc5 18. Nec7+ Kf7 19. Kf3 Ne6 {0-1 (43) Antonio,V (2402)-Istratescu,A (2595) Graz 2018}) 11. g5 {[%emt 0:01:21]} Nxb3 {[%emt 0:00:09]} 12. axb3 $146 {[%emt 0:01:54]} ({Predecessor:} 12. cxb3 Nd7 13. Rc1 Qd8 14. h4 Be7 15. Rg1 Ne5 16. f4 Nc6 17. f5 Ne5 18. Rc2 {1-0 (33) Berezjuk,S (2390)-Belunek,V (2230) Tatranska Lomnica 1997}) 12... Nd7 {[%emt 0:00:03]} 13. f4 {[%emt 0:07:13]} Be7 {[%emt 0:09:23]} 14. f5 {[%emt 0:01:53]} Ne5 {[%emt 0:00:34]} 15. fxe6 {[%emt 0:08:39]} ({Better is} 15. O-O-O $16) 15... fxe6 {[%emt 0:00:48]} 16. Rf1 {[%emt 0:01:15]} Nf7 {[%emt 0:12:41]} 17. Qg4 {[%emt 0:10:48]} Qd7 {[%emt 0:01:26]} 18. O-O-O {[%emt 0:11:16]} g6 {[%emt 0:04:38]} 19. Qg2 {[%emt 0:03:50]} b5 {[%emt 0:05:20]} 20. h4 {[%emt 0:01:49]} b4 $11 {[%emt 0:02:16]} 21. Na4 {[%emt 0:00:50]} e5 {[%emt 0:00:54]} 22. Nf5 {[%emt 0:09:51]} gxf5 {[%emt 0:00:25]} 23. exf5 {[%emt 0:00:02]} Bb7 {[%emt 0:05:20]} 24. Qg3 {[%emt 0:00:41]} Be4 {[%emt 0:01:54]} 25. Nc5 {[%emt 0:03:53]} Qc6 {[%emt 0:04:05]} 26. Nxe4 {[%emt 0:01:27]} Qxe4 {[%emt 0:00:09]} 27. f6 {[%emt 0:04:21]} Bd8 {[%emt 0:09:13]} 28. Qh3 {[%emt 0:01:30]} Kf8 {[%emt 0:00:43]} 29. Rfe1 {[%emt 0:00:46]} Qc6 {[%emt 0:00:17]} 30. h5 {[%emt 0:00:46]} a5 {[%emt 0:12:31]} 31. Qf5 {[%emt 0:01:48]} a4 {[%emt 0:02:13]} 32. g6 {[%emt 0:07:23]} hxg6 {[%emt 0:00:02]} 33. hxg6 {[%emt 0:00:03]} Rh2 {[%emt 0:00:07]} 34. gxf7 {[%emt 0:01:00]} axb3 {[%emt 0:01:16]} 35. Rd2 {[%emt 0:00:04]} Rxd2 {[%emt 0:01:00]} 36. Bh6+ {[%emt 0:01:08]} Kxf7 {[%emt 0:00:03]} 37. Qh5+ {[%emt 0:01:14]} Ke6 {[%emt 0:00:06]} 38. Qh3+ {[%emt 0:00:39]} Kd5 {[%emt 0:00:56]} 39. Qxb3+ {[%emt 0:00:42]} Kc5 {[%emt 0:01:30]} 40. f7 {[%emt 0:04:17]} Bh4 {[%emt 0:00:38]} 41. Bxd2 {[%emt 0:06:44]} Bxe1 {[%emt 0:00:13]} 42. Bxe1 {[%emt 0:00:17]} Qe4 {[%emt 0:00:54]} 43. Bf2+ {[%emt 0:01:31]} Kb5 {[%emt 0:00:16]} 44. Qe6 {[%emt 0:04:11]} Qc6 {[%emt 0:00:49]} 45. Qf5 {[%emt 0:00:29]} b3 {[%emt 0:00:53]} 46. c3 {[%emt 0:00:25]} Rf8 {[%emt 0:00:28]} 47. Qe6 {[%emt 0:00:16]} Ka4 {[%emt 0:01:29]} 48. Qe7 {[%emt 0:00:16]} Qh1+ {[%emt 0:00:12]} 49. Kd2 {[%emt 0:00:04]} Qd5+ {[%emt 0:00:09]} 50. Kc1 {[%emt 0:00:28]} Qh1+ {[%emt 0:00:48]} 51. Kd2 {[%emt 0:00:02]} Qd5+ {[%emt 0:00:04]} 52. Kc1 {[%emt 0:00:22]} Qxf7 {[%emt 0:00:23]} 53. Qxd6 {[%emt 0:00:06]} Qf4+ {[%emt 0:00:14]} 54. Kd1 {[%emt 0:00:03]} Qf3+ {[%emt 0:00:10]} 0-1

[Event "2nd Sharjah Masters 2018"]
[Site "Sharjah"]
[Date "2018.04.14"]
[Round "4"]
[White "Polakhare Aryan"]
[Black "Hejazipour, Mitra"]
[Result "0-1"]
[ECO "B50"]
[WhiteElo "1966"]
[BlackElo "2304"]
[Annotator "NA"]
[PlyCount "108"]
[EventDate "2018.??.??"]
[EventType "swiss"]
[EventCountry "UAE"]
[SourceTitle "playchess.com"]
[Source "ChessBase"]
[SourceQuality "1"]
[TimeControl "5400+30"]

1. e4 {[%emt 0:00:00]} c5 {[%emt 0:00:35]} 2. Nf3 {[%emt 0:00:00]} d6 {[%emt 0:00:11]} 3. Nc3 {[%emt 0:00:00]} a6 {[%emt 0:03:10]} 4. Be2 {[%emt 0:00:36]} Nf6 {[%emt 0:16:42]} 5. e5 {[%emt 0:00:16]} dxe5 {[%emt 0:00:09]} 6. Nxe5 {[%emt 0:00:02]} e6 {[%emt 0:02:46]} 7. Bf3 {[%emt 0:00:28]} Qc7 {[%emt 0:04:14]} 8. d4 {[%emt 0:11:30]} cxd4 {[%emt 0:14:10]} 9. Qxd4 {[%emt 0:02:16]} Bc5 {[%emt 0:04:18]} 10. Qa4+ {[%emt 0:01:27]} Nbd7 {[%emt 0:05:18]} 11. Nd3 {[%emt 0:12:26]} O-O {[%emt 0:07:53]} 12. Nxc5 {[%emt 0:00:28]} Nxc5 {[%emt 0:00:40]} 13. Qh4 {[%emt 0:00:27]} e5 {[%emt 0:05:32]} 14. Bg5 {[%emt 0:00:45]} e4 {[%emt 0:01:03] [#]} 15. Be2 $1 {[%emt 0:03:52]} ({Wrong is} 15. Bxe4 $2 Nfxe4 16. Nxe4 Re8 $19) ({Not} 15. Nxe4 Ncxe4 16. Bxe4 Qa5+ 17. Bd2 Qe5 $17) 15... Qe5 {[%emt 0:00:49]} 16. Rd1 $16 {[%emt 0:05:14]} (16. O-O-O $142) 16... Be6 {[%emt 0:02:25]} 17. Bxf6 {[%emt 0:03:35]} gxf6 {[%emt 0:01:01]} 18. Qg3+ {[%emt 0:00:14]} Qxg3 {[%emt 0:01:29]} 19. hxg3 {[%emt 0:00:02]} f5 {[%emt 0:00:38]} 20. Nd5 {[%emt 0:01:52]} Kg7 {[%emt 0:01:54]} 21. Nf4 {[%emt 0:04:51]} Rfd8 {[%emt 0:02:36]} 22. b3 {[%emt 0:03:25]} b5 {[%emt 0:00:48]} 23. Nh5+ {[%emt 0:00:45]} Kf8 {[%emt 0:02:45]} 24. Nf6 {[%emt 0:02:09]} Ke7 {[%emt 0:01:10]} 25. Rh6 {[%emt 0:06:30]} Rxd1+ {[%emt 0:04:06]} 26. Bxd1 {[%emt 0:01:11]} b4 {[%emt 0:01:10]} 27. Nxh7 {[%emt 0:01:55]} Rg8 {[%emt 0:02:54]} 28. Nf6 {[%emt 0:01:23]} Rg6 {[%emt 0:01:30]} 29. Rxg6 {[%emt 0:00:11]} fxg6 {[%emt 0:00:04]} 30. Nh7 {[%emt 0:00:04]} Bd5 {[%emt 0:02:15]} 31. Ng5 {[%emt 0:00:18]} Kf6 {[%emt 0:00:48]} 32. Nh3 {[%emt 0:00:52]} g5 {[%emt 0:01:45]} 33. Kd2 {[%emt 0:00:40]} Ne6 {[%emt 0:01:07]} 34. c3 {[%emt 0:03:48]} a5 {[%emt 0:00:04]} 35. c4 {[%emt 0:00:28]} Bc6 {[%emt 0:00:03]} 36. Ke3 {[%emt 0:00:18]} Ke5 {[%emt 0:01:21]} 37. f4+ {[%emt 0:01:12]} exf3 {[%emt 0:00:40]} 38. gxf3 {[%emt 0:06:08]} f4+ {[%emt 0:00:21]} 39. gxf4+ {[%emt 0:00:19]} gxf4+ {[%emt 0:00:03]} 40. Kd3 {[%emt 0:00:22]} Be8 {[%emt 0:00:48]} 41. Nf2 {[%emt 0:02:43]} Bg6+ {[%emt 0:00:37]} 42. Kd2 {[%emt 0:00:01]} Kd4 {[%emt 0:00:56]} 43. Nh3 {[%emt 0:02:15]} Bb1 {[%emt 0:01:25]} 44. Kc1 {[%emt 0:00:21]} Bf5 {[%emt 0:00:25]} 45. Ng1 {[%emt 0:03:25]} Ke3 {[%emt 0:00:11]} 46. Kb2 {[%emt 0:01:53]} Nc5 {[%emt 0:02:05]} 47. a3 {[%emt 0:01:11]} Nd3+ {[%emt 0:00:37]} 48. Ka2 {[%emt 0:00:05]} Kd2 {[%emt 0:00:26]} 49. Ne2 {[%emt 0:00:44]} Nc1+ {[%emt 0:01:30]} 50. Nxc1 {[%emt 0:00:15]} Kxc1 {[%emt 0:00:23]} 51. Be2 {[%emt 0:00:21]} Kd2 {[%emt 0:00:08]} 52. axb4 {[%emt 0:00:15]} axb4 {[%emt 0:00:04]} 53. Bf1 {[%emt 0:00:33]} Ke1 {[%emt 0:00:05]} 54. c5 {[%emt 0:00:07]} Kxf1 {[%emt 0:00:06]} 0-1